[Event "GER-ch Youth-U14 2022"]
[Site "Willingen"]
[Date "2022.06.07"]
[Round "4.1"]
[White "Deuer, Marius"]
[Black "Sreyas Payyappat"]
[Result "1/2-1/2"]
[ECO "A35"]
[WhiteElo "2359"]
[BlackElo "2169"]
[Annotator "TA"]
[PlyCount "72"]
[EventDate "2022.06.05"]
[EventType "swiss"]
[EventRounds "9"]
[EventCountry "GER"]
[SourceTitle "playchess.com"]
[Source "ChessBase"]
[SourceQuality "1"]
[TimeControl "40/4500+30:900+30"]

{[%evp 23,72,62,35,45,53,35,50,25,27,27,34,36,45,38,35,37,38,26,15,40,14,-50,62,0,45,-58,-27,-31,-34,-64,136,141,191,178,183,177,173,158,172,166,140,14,61,42,45,0,0,0,0,0,0]} 1. Nf3 {[%emt 0:00:00]} Nf6 {[%emt 0:00:00]} 2. c4 {[%emt 0:00:00]} c5 {[%emt 0:00:00]} 3. Nc3 {[%emt 0:00:00]} Nc6 {[%emt 0:00:00]} 4. e3 {[%emt 0:00:00]} g6 {[%emt 0:00:00]} 5. d4 {[%emt 0:00:00]} cxd4 {[%emt 0:00:00]} 6. exd4 {[%emt 0:00:00]} d5 {[%emt 0:00:00]} 7. cxd5 {[%emt 0:00:00]} Nxd5 {[%emt 0:00:00]} 8. Qb3 {[%emt 0:00:00]} Nxc3 {[%emt 0:00:00]} 9. Bc4 {[%emt 0:00:00]} e6 {[%emt 0:00:00]} 10. bxc3 {[%emt 0:00:00]} Bg7 {[%emt 0:00:00]} 11. Ba3 {[%emt 0:00:00]} Bf8 {[%emt 0:00:00]} 12. Bxf8 {[%emt 0:00:00]} Kxf8 {[%emt 0:00:00]} 13. h4 {[%emt 0:00:00] A35: Symmetrical English: 2 Nc3 Nc6 3 Nf3.} h5 {[%emt 0:00:00]} 14. O-O {[%emt 0:00:00]} Kg7 {[%emt 0:00:00]} 15. Qb2 {[%emt 0:00:00] White is slightly better.} Qf6 {[%emt 0:00:00] [#]} 16. Ng5 $146 {[%emt 0:00:00]} ({Predecessor:} 16. Rfe1 Rd8 17. Re3 Ne7 18. Bd3 Nd5 19. Re5 Bd7 20. c4 Nf4 {1-0 (62) Stork,O (2394)-Sreyas,P (2287) Dortmund 2021}) 16... b6 {[%emt 0:00:00]} 17. Rfe1 {[%emt 0:00:00]} Na5 {[%emt 0:00:00][%cal Bc6a5,Ba5c4,Bc4d6,Bd6f5][%mdl 32]} 18. Bd3 {[%emt 0:00:26]} Bb7 {[%emt 0:00:00]} 19. Re3 {[%emt 0:15:32]} Rac8 {[%emt 0:02:04]} 20. Rae1 {[%emt 0:05:37][%cal Re3e6] Rxe6! is the strong threat.} Bd5 {[%emt 0:02:59]} 21. Rg3 {[%emt 0:06:24]} Nc4 {[%emt 0:01:39] Against Re5} 22. Qb4 {[%emt 0:08:52]} ({Better is} 22. Qc2 $11) 22... Rhd8 {[%emt 0:05:43] [#]} (22... Rc7 $15) 23. Be4 {[%emt 0:12:15]} (23. Nxf7 $1 $14 Kxf7 24. Bxg6+ Kg8 25. Be4+ Kh8 26. Rg6) 23... Bxe4 {[%emt 0:02:54]} (23... a5 $5 {[%cal Ra5b4]} 24. Qb1 Nd2 25. Qxb6 Bxe4 26. Nxe4 Nxe4 27. Rxe4 Rb8 $11) 24. Rxe4 {[%emt 0:00:09]} (24. Nxe4 $14 a5 25. Qb1 (25. Nxf6 axb4 26. Nxh5+ Kf8 $11)) 24... Nd6 {[%emt 0:01:36]} (24... a5 $5 {[%cal Ra5b4]} 25. Qa4 b5 $15) 25. Rf3 {[%emt 0:01:12]} Nf5 {[%emt 0:00:12]} (25... Nxe4 $2 26. Rxf6 Nxf6 27. Qe7 $18) 26. Ref4 {[%emt 0:05:16]} e5 $2 {[%emt 0:08:45]} (26... Rd5 $15 {stays ahead.}) 27. Ne4 {[%emt 0:03:26]} Qe6 {[%emt 0:03:35] [#]} (27... a5 $16 {might work better.} 28. Qb1 Qe6) 28. Rxf5 $1 $18 {[%emt 0:00:08][%mdl 512]} gxf5 {[%emt 0:00:38]} 29. Rg3+ $1 {[%emt 0:00:01]} Kh8 {[%emt 0:10:13]} 30. Ng5 {[%emt 0:00:08]} Qd7 {[%emt 0:00:09] Hoping for ...f6.} (30... Qxa2 {gets mated.} 31. Qe7 Rg8 32. Qf6+ Rg7 33. Ne6 $1 {[%mdl 512]} Qb1+ 34. Kh2) 31. dxe5 {[%emt 0:07:08] Threatens to win with Qf4.} Rc6 {[%emt 0:02:42] [#]} 32. e6 {[%emt 0:11:55] White is more active.} ({White should play} 32. Qf4 $1 $16 {[%cal Oe5e6] Strongly threatening e6!} Rg6 33. e6 fxe6 34. Qe5+ Kg8 35. Nxe6 Rxg3 36. Qxg3+ Kf7 37. Nxd8+ Qxd8 38. Qf3) 32... fxe6 {[%emt 0:07:31]} (32... Qd1+ 33. Kh2 Rxe6 34. Nxf7+ Kh7 35. Ng5+ Kh8 36. Nxe6 $18) (32... Rxe6 $11 {is more appropriate.} 33. Nxe6 Qxe6) 33. Qf4 $1 $14 {[%emt 0:00:25][%cal Og5f7] Nf7+! would kill now.} Rg8 $1 {[%emt 0:02:32]} 34. Qe5+ {[%emt 0:07:11]} Rg7 {[%emt 0:00:21] The position is equal.} 35. Rd3 {[%emt 0:04:58]} Qxd3 {[%emt 0:00:58]} 36. Qb8+ {[%emt 0:00:02]} Rg8 $1 {[%emt 0:00:11] Weighted Error Value: White=0.25 (precise) /Black=0.28 (precise)} 1/2-1/2

[Event "GER-ch Youth-U14 2022"]
[Site "Willingen"]
[Date "2022.06.07"]
[Round "4.2"]
[White "Ermitsch, Magnus"]
[Black "Haubold, Sebastian Marcel"]
[Result "1-0"]
[ECO "C84"]
[WhiteElo "2222"]
[BlackElo "1869"]
[Annotator "TA"]
[PlyCount "71"]
[EventDate "2022.06.05"]
[EventType "swiss"]
[EventRounds "9"]
[EventCountry "GER"]
[SourceTitle "playchess.com"]
[Source "ChessBase"]
[SourceQuality "1"]
[TimeControl "40/4500+30:900+30"]

{[%evp 15,71,14,14,18,22,10,27,28,40,20,29,29,25,25,31,22,29,22,45,24,65,85,74,71,68,64,186,181,165,173,238,200,373,347,355,331,462,322,300,269,232,206,735,731,724,720,696,407,1330,1285,2171,2075,3057,2591,29988,29988,29986,29987]} 1. e4 {[%emt 0:00:00]} e5 {[%emt 0:00:00]} 2. Nf3 {[%emt 0:00:00]} Nc6 {[%emt 0:00:00]} 3. Bb5 {[%emt 0:00:00][%cal Bf1b5,Bb5a4,Ba4b3,Bb3a2,Ba2d5][%mdl 32]} a6 {[%emt 0:00:00]} 4. Ba4 {[%emt 0:00:00]} Nf6 {[%emt 0:00:00]} 5. O-O {[%emt 0:00:00]} Be7 {[%emt 0:00:00]} 6. d3 {[%emt 0:00:00]} b5 {[%emt 0:00:00]} 7. Bb3 {[%emt 0:00:00]} d6 {[%emt 0:00:00]} 8. c3 {[%emt 0:00:00]} O-O {[%emt 0:00:00]} 9. a4 {[%emt 0:00:00] 9.h3 is setting a new trend. C84: Closed Ruy Lopez: Unusual White 6th moves.} Bb7 {[%emt 0:00:00]} 10. Bg5 {[%emt 0:00:00]} Nd7 {[%emt 0:00:00]} 11. Be3 {[%emt 0:00:00] White has an edge.} Na5 {[%emt 0:07:27] [#]} 12. Ba2 $146 {[%emt 0:00:00]} ({Predecessor:} 12. Bc2 c5 13. Nbd2 d5 14. d4 dxe4 15. Nxe4 Qc7 16. dxc5 Nc4 17. b4 h6 18. Bc1 {1-0 (26) Pham,K (2291)-Boeren,J (1778) Almelo 2022}) 12... c5 {[%emt 0:00:52]} 13. b4 {[%emt 0:16:09]} cxb4 {[%emt 0:09:11]} 14. cxb4 {[%emt 0:00:56]} Nc6 {[%emt 0:00:11]} 15. Bd5 {[%emt 0:03:05]} Nb6 {[%emt 0:03:06]} 16. Nc3 {[%emt 0:02:25]} Rb8 {[%emt 0:19:45]} 17. axb5 {[%emt 0:02:37]} axb5 {[%emt 0:00:23]} 18. Qb3 {[%emt 0:02:48]} Bf6 {[%emt 0:15:47]} 19. Rfc1 {[%emt 0:24:18] 0x0.002a9fbbedb5dp-1022s more active pieces. The black rooks are badly placed.} Nxd5 {[%emt 0:02:26]} 20. Nxd5 {[%emt 0:00:30]} ({Much worse is} 20. exd5 Ne7 $11) 20... Ne7 {[%emt 0:02:59] Loses the game.} (20... Kh8 $14) 21. Nxf6+ $18 {[%emt 0:04:25]} gxf6 {[%emt 0:00:13]} 22. Nh4 {[%emt 0:02:51]} Qd7 {[%emt 0:04:23]} (22... d5 $142 23. Bc5 Kh8) 23. Qd1 {[%emt 0:01:59]} Bc8 $2 {[%emt 0:03:50]} (23... Kh8 24. Qh5 Nc6) 24. h3 {[%emt 0:01:52] aiming for Ra7.} Kh8 {[%emt 0:01:34]} 25. Qf3 {[%emt 0:03:09]} Qe6 {[%emt 0:00:17]} 26. d4 {[%emt 0:00:36][%cal Bd3d4,Bd4e5][%mdl 32]} d5 {[%emt 0:01:36]} 27. Rc7 {[%emt 0:03:39] Raa7 is the strong threat.} Rb7 {[%emt 0:02:54]} 28. Rc5 {[%emt 0:00:29][%cal Re4d5]} f5 $2 {[%emt 0:03:57]} (28... dxe4 29. Qxe4 exd4 30. Qxd4 Rd7) 29. exd5 {[%emt 0:01:59]} Qf6 {[%emt 0:00:07] [#]} 30. dxe5 $1 {[%emt 0:00:48]} Qxh4 {[%emt 0:00:09]} 31. d6 {[%emt 0:00:11]} Ng6 {[%emt 0:00:19] [#]} (31... Rb8 $142 32. Ra7 Re8 33. Rxe7 Rxe7 34. dxe7 Be6 35. Rxb5 Re8) 32. Rxc8 $1 {[%emt 0:00:17][%mdl 576] Remove Defender} Rxc8 {[%emt 0:01:04]} (32... Qe4 33. Rxf8+) 33. Qxb7 {[%emt 0:00:07]} Rf8 {[%emt 0:00:29]} 34. Ra8 {[%emt 0:00:38] Threatening mate with Rxf8+.} f4 {[%emt 0:00:40]} 35. Rxf8+ {[%emt 0:00:24]} Nxf8 {[%emt 0:00:08]} 36. Qxf7 {[%emt 0:00:07] Weighted Error Value: White=0.26 (precise) /Black=0.51} 1-0

[Event "GER-ch Youth-U14 2022"]
[Site "Willingen"]
[Date "2022.06.07"]
[Round "4.4"]
[White "Mader, Fabian"]
[Black "Besou, Hussain"]
[Result "1/2-1/2"]
[ECO "B11"]
[WhiteElo "1652"]
[BlackElo "2094"]
[Annotator "TA"]
[PlyCount "141"]
[EventDate "2022.06.05"]
[EventType "swiss"]
[EventRounds "9"]
[EventCountry "GER"]
[SourceTitle "playchess.com"]
[Source "ChessBase"]
[SourceQuality "1"]
[TimeControl "40/4500+30:900+30"]

{[%evp 16,141,11,22,20,20,25,17,25,25,25,21,22,22,18,18,42,25,36,19,10,19,98,98,98,98,95,104,110,106,128,126,131,125,145,161,157,150,204,32,18,0,0,0,0,0,0,0,0,0,0,0,0,0,0,0,0,0,0,-12,-12,-199,-191,-191,-170,-170,-170,-862,-868,-535,-90,-150,-141,-170,-137,-160,-42,-42,-42,-42,-42,-42,0,0,0,-12,-12,-12,-12,-368,-334,-12839,-12839,-12840,-23,-12841,-12842,-12842,-12,-23,-12,-12,-12,-12,-12,-12,-12,-12,-12,-12,-12,-12,-10,-10,-10,-10,-10,-10,-10,-10,0,-10,0,0,0,0,0,0]} 1. e4 {[%emt 0:00:00]} c6 {[%emt 0:00:00]} 2. Nc3 {[%emt 0:00:00]} d5 {[%emt 0:00:00]} 3. Nf3 {[%emt 0:00:00]} Bg4 {[%emt 0:00:00]} 4. h3 {[%emt 0:00:00]} Bxf3 {[%emt 0:00:00]} 5. Qxf3 {[%emt 0:00:00]} Nf6 {[%emt 0:00:00]} 6. d4 {[%emt 0:00:00]} dxe4 {[%emt 0:00:00]} 7. Qe3 {[%emt 0:00:00]} Nbd7 {[%emt 0:00:00]} 8. Nxe4 {[%emt 0:00:00]} Nxe4 {[%emt 0:00:00]} 9. Qxe4 {[%emt 0:00:00]} Nf6 {[%emt 0:00:00] B11: Caro-Kann: Two Knights Variation.} 10. Qe3 {[%emt 0:00:00]} e6 {[%emt 0:00:00]} 11. c3 {[%emt 0:00:00] [#]} Bd6 $146 {[%emt 0:00:00]} ({Predecessor:} 11... Qd5 12. Qg3 h5 13. Be2 h4 14. Qf3 Bd6 15. O-O O-O-O 16. Qxd5 exd5 17. Bd3 Rde8 {½-½ (31) Maze,S (2617)-Andreikin,D (2736) Stockholm 2016}) 12. Bd3 {[%emt 0:00:00]} O-O {[%emt 0:00:00]} 13. O-O {[%emt 0:00:00]} Qa5 {[%emt 0:07:13]} 14. Qf3 {[%emt 0:05:47]} Qd5 {[%emt 0:01:05]} 15. Qxd5 {[%emt 0:04:03]} cxd5 {[%emt 0:01:21]} 16. Bg5 {[%emt 0:03:43]} Nd7 {[%emt 0:03:53]} 17. f4 {[%emt 0:06:48]} h6 {[%emt 0:03:59]} 18. Bh4 {[%emt 0:00:08]} g5 {[%emt 0:05:59]} (18... g6 $11 {keeps the balance.}) 19. fxg5 $16 {[%emt 0:03:49]} Be7 {[%emt 0:00:21]} 20. Rf3 {[%emt 0:06:04] White is more active.} hxg5 {[%emt 0:07:02] [#]} 21. Bxg5 {[%emt 0:01:19]} Bxg5 {[%emt 0:00:09]} 22. Rg3 {[%emt 0:00:06]} f6 {[%emt 0:00:24]} 23. h4 $1 {[%emt 0:00:06][%cal Bh3h4,Bh4g5][%mdl 96] Pin} Kf7 {[%emt 0:00:29]} 24. hxg5 {[%emt 0:00:17]} f5 {[%emt 0:08:05]} 25. Re1 {[%emt 0:03:11]} Rg8 {[%emt 0:14:17]} 26. Rh3 {[%emt 0:05:56] Strongly threatening Rh7+.} Nf8 {[%emt 0:01:26] Against Rh7+} (26... Rg7 $16) 27. c4 $2 {[%emt 0:07:56]} (27. Rh5 $18) 27... Rd8 $14 {[%emt 0:01:44]} 28. Rhe3 {[%emt 0:04:45]} Rxg5 {[%emt 0:01:08]} 29. cxd5 {[%emt 0:01:57]} Rxd5 {[%emt 0:00:09]} 30. Bc4 $1 {[%emt 0:00:07]} Rd6 {[%emt 0:00:05]} 31. Re5 {[%emt 0:00:50]} Rxd4 {[%emt 0:11:34]} 32. Bxe6+ {[%emt 0:00:26]} Kf6 {[%emt 0:00:18]} 33. Bb3 {[%emt 0:05:51]} Ng6 {[%emt 0:01:15]} 34. Re6+ {[%emt 0:05:54]} Kg7 {[%emt 0:00:11]} 35. Re8 {[%emt 0:00:10]} Kh6 {[%emt 0:08:36]} 36. R1e6 {[%emt 0:04:38]} Kh5 {[%emt 0:01:00]} 37. Rg8 {[%emt 0:01:49]} Rd2 {[%emt 0:01:39][%csl LRb2,LRg2]} 38. Rexg6 $2 {[%emt 0:01:20]} Rxg6 $11 {[%emt 0:00:27][%mdl 4096] Endgame KRR-KRB} ({Not} 38... Rdxg2+ 39. Kf1 Rg1+ 40. Kf2 R1g2+ 41. Kf1 Rg1+ 42. Kf2 R1g2+ 43. Kf1 $11) 39. Bf7 {[%emt 0:00:05]} Rdxg2+ {[%emt 0:00:04]} 40. Kf1 {[%emt 0:00:38] Hoping for Rh8+.} Kh6 $1 {[%emt 0:00:15]} 41. Rh8+ {[%emt 0:17:25]} (41. Bxg6 Rxg6 42. Rb8) 41... Kg7 $19 {[%emt 0:15:19]} 42. Bxg6 {[%emt 0:00:11]} Rxg6 $2 {[%emt 0:00:06] KR-KR} (42... Rxb2 $19 {and Black stays clearly on top.} 43. Ra8 Kxg6 44. Rxa7 Kg5) 43. Rd8 {[%emt 0:00:33]} (43. Re8 $142) 43... Rb6 $1 $17 {[%emt 0:00:20]} 44. b3 {[%emt 0:02:00]} Kf6 $1 {[%emt 0:00:14]} 45. Kf2 {[%emt 0:00:50]} Re6 {[%emt 0:01:10]} (45... Ra6 $1 $17 {[%cal Ra6a2]} 46. Rd2 Re6) 46. Rf8+ $15 {[%emt 0:01:02]} Kg6 {[%emt 0:00:33] ...Ra6 is the strong threat.} 47. Rg8+ {[%emt 0:01:35]} Kf7 {[%emt 0:00:12]} 48. Rd8 {[%emt 0:00:17]} Re7 {[%emt 0:00:14] Against Rd7} 49. Rd6 {[%emt 0:00:34]} Rc7 {[%emt 0:05:26]} 50. Kf3 {[%emt 0:03:26]} Ke7 {[%emt 0:02:40]} 51. Rh6 {[%emt 0:00:52]} Kd7 {[%emt 0:00:09]} 52. Kf4 $2 {[%emt 0:00:43][%mdl 8192]} (52. Rf6 $1 $11) 52... Rc2 $19 {[%emt 0:00:09]} 53. Kxf5 $2 {[%emt 0:02:07]} (53. Rh7+ Kc6 54. Rh6+ Kc5 55. Rh7) 53... Rxa2 {[%emt 0:00:08]} 54. Ke5 {[%emt 0:01:54] [#]} Rb2 $2 {[%emt 0:00:48]} ({Black should try} 54... Rd2 $1 $19 55. Ke4 a5) 55. Rh3 $2 {[%emt 0:00:40][%mdl 8192] [#]} (55. Rd6+ $11 Kc7 56. Rd3) 55... Rd2 $1 {[%emt 0:01:17]} 56. Rc3 {[%emt 0:01:52]} Rd6 $2 {[%emt 0:01:18]} (56... b6 $19 {Threatens to win with ...a5.} 57. b4 Rb2) 57. Ke4 $1 $11 {[%emt 0:01:13]} Rc6 {[%emt 0:00:32]} 58. Rh3 {[%emt 0:01:00] The position is equal.} Kc7 {[%emt 0:00:11] aiming for ...Rd6.} 59. Kd4 {[%emt 0:00:38]} Kb6 {[%emt 0:00:17]} 60. Rh5 {[%emt 0:01:03]} Ka6 {[%emt 0:00:57]} 61. b4 {[%emt 0:00:00]} Rc1 {[%emt 0:00:00]} 62. Rc5 {[%emt 0:00:00]} Rh1 {[%emt 0:00:00]} 63. Kc4 {[%emt 0:00:00]} b6 {[%emt 0:00:00]} 64. Rg5 {[%emt 0:00:00]} Rc1+ {[%emt 0:00:00]} 65. Kb3 {[%emt 0:00:00]} Rc7 {[%emt 0:00:00]} 66. Rh5 {[%emt 0:00:00]} Kb7 {[%emt 0:00:00]} 67. Rg5 {[%emt 0:00:00]} Kc8 {[%emt 0:00:00]} 68. b5 {[%emt 0:00:00]} Kd7 {[%emt 0:00:00]} 69. Rg7+ {[%emt 0:00:00]} Kd6 {[%emt 0:00:00]} 70. Rxc7 {[%emt 0:00:00]} Kxc7 {[%emt 0:00:00]} 71. Kc4 {[%emt 0:00:00] Both players deserved the win here.  Weighted Error Value: White=0.74/Black=0.46} 1/2-1/2

[Event "GER-ch Youth-U14 2022"]
[Site "Willingen"]
[Date "2022.06.07"]
[Round "4.5"]
[White "Möller, Maurin"]
[Black "Udelnov, Valentin"]
[Result "1-0"]
[ECO "C50"]
[WhiteElo "1780"]
[BlackElo "1901"]
[Annotator "TA"]
[PlyCount "45"]
[EventDate "2022.06.05"]
[EventType "swiss"]
[EventRounds "9"]
[EventCountry "GER"]
[SourceTitle "playchess.com"]
[Source "ChessBase"]
[SourceQuality "1"]
[TimeControl "40/4500+30:900+30"]

{[%evp 17,45,-41,12,2,13,0,0,0,3,6,15,9,4,13,18,28,110,107,118,110,132,133,154,153,133,147,312,325,609,375]} 1. e4 {[%emt 0:00:00]} e5 {[%emt 0:00:00]} 2. Nf3 {[%emt 0:00:00]} Nc6 {[%emt 0:00:00]} 3. Bc4 {[%emt 0:00:00]} Bc5 {[%emt 0:00:00]} 4. O-O {[%emt 0:00:00]} Nf6 {[%emt 0:00:00]} 5. d4 {[%emt 0:00:00]} Bxd4 {[%emt 0:00:00]} 6. Nxd4 {[%emt 0:00:00]} Nxd4 {[%emt 0:00:00]} 7. f4 {[%emt 0:00:00]} d6 {[%emt 0:00:00]} 8. fxe5 {[%emt 0:00:00]} dxe5 {[%emt 0:00:00]} 9. Bg5 {[%emt 0:00:00]} Be6 {[%emt 0:00:00]} (9... Qe7 $15 10. Nd2 Be6) 10. Na3 $11 {[%emt 0:00:00][%cal Bb1a3,Ba3c4,Bc4e3,Be3g4,Bg4f6,Bf6g4,Bg4e5][%mdl 32] C50: Hungarian Defence and Giuoco Pianissimo.} Qe7 {[%emt 0:00:00]} 11. Bxf6 {[%emt 0:00:00]} gxf6 {[%emt 0:00:00]} 12. c3 {[%emt 0:00:00] The position is equal.} Bxc4 {[%emt 0:02:02] 12...Nc6 is more fashionable.} 13. Nxc4 {[%emt 0:00:00]} Ne6 {[%emt 0:00:27] White must now prevent ...Qc5+.} 14. b4 {[%emt 0:00:00][%mdl 1024] Inhibits Qc5+. White has compensation.} Rg8 {[%emt 0:04:16]} 15. Ne3 {[%emt 0:00:00] Threatens to win with Nd5.} Nf4 {[%emt 0:06:46]} 16. Kh1 $36 {[%emt 0:00:00][%mdl 2048] aiming for g3. White has the initiative.} c6 {[%emt 0:07:06]} (16... Qe6 $11 {keeps the balance.}) 17. g3 $1 $16 {[%emt 0:01:28] Hoping for Nf5.} Rd8 {[%emt 0:04:04]} 18. Qf3 {[%emt 0:01:31]} Ne6 {[%emt 0:09:17] [#]} 19. Ng4 $1 {[%emt 0:02:37]} Rg6 {[%emt 0:06:50]} 20. Nxf6+ {[%emt 0:01:30]} Kf8 {[%emt 0:00:06] [#]} 21. Ng4 $1 {[%emt 0:02:58] [#] White is more active.} (21. Nxh7+ Kg7 22. Qh5 Rh8 23. Qxe5+ Kxh7 $19) 21... Ng7 $146 {[%emt 0:05:15]} (21... Ng5 $16 22. Qf5 Qe6) ({Predecessor:} 21... Ng5 22. Qf5 Nh3 23. Nxe5 Rg5 24. Qxf7+ Qxf7 25. Nxf7 Ke7 26. Nxd8 Kxd8 27. Kg2 Rh5 28. Rf5 {1-0 (28) Zaza,L (2028)-Urwyler,N (1961) Lenzerheide 2018}) 22. Nxe5 $1 $18 {[%emt 0:00:14]} Rgd6 $2 {[%emt 0:10:42]} (22... Kg8 23. Nxg6 (23. Qxf7+ Qxf7 24. Nxf7 Rf8 $18) 23... hxg6) 23. Qxf7+ {[%emt 0:01:24] Weighted Error Value: White=0.02 (flawless) /Black=0.51} 1-0

[Event "GER-ch Youth-U14 2022"]
[Site "Willingen"]
[Date "2022.06.07"]
[Round "4.6"]
[White "Kieselbach, Jannik"]
[Black "Haubold, Christian Lucas"]
[Result "0-1"]
[ECO "C45"]
[WhiteElo "1631"]
[BlackElo "1921"]
[Annotator "TA"]
[PlyCount "52"]
[EventDate "2022.06.05"]
[EventType "swiss"]
[EventRounds "9"]
[EventCountry "GER"]
[SourceTitle "playchess.com"]
[Source "ChessBase"]
[SourceQuality "1"]
[TimeControl "40/4500+30:900+30"]

{[%evp 17,52,11,15,-83,-76,-83,-32,-46,-37,-31,-49,-32,0,-25,15,-116,-123,-125,-131,-202,-187,-348,-357,-348,-335,-681,-668,-5322,-5322,-5274,-5266,-29989,-29990,-29990,-29990,-29990,-1908]} 1. e4 {[%emt 0:00:00]} e5 {[%emt 0:00:00]} 2. Nf3 {[%emt 0:00:00]} Nc6 {[%emt 0:00:00]} 3. d4 {[%emt 0:00:00]} exd4 {[%emt 0:00:00]} 4. Nxd4 {[%emt 0:00:00]} Bc5 {[%emt 0:00:00]} 5. Be3 {[%emt 0:00:00]} Qf6 {[%emt 0:00:00]} 6. c3 {[%emt 0:00:00]} Nge7 {[%emt 0:00:00]} 7. Bc4 {[%emt 0:00:00]} Ne5 {[%emt 0:00:00]} 8. Be2 {[%emt 0:00:00]} Qg6 {[%emt 0:00:00]} 9. O-O {[%emt 0:00:00]} d6 {[%emt 0:14:35]} ({Don't take} 9... Qxe4 10. Nd2 Qg6 11. Nb5 Bxe3 12. Nxc7+ Kd8 13. Nxa8 Bxd2 14. Qxd2 $16) 10. Nb5 {[%emt 0:03:05] C45: Scotch Game.} (10. f3 $11 {remains equal.}) 10... Bh3 $1 $17 {[%emt 0:00:50][%csl Gh3][%cal Rg6g2]} 11. Bf3 {[%emt 0:01:45]} O-O {[%emt 0:18:23]} (11... O-O-O $17 12. Nd4 d5) 12. Bxc5 $15 {[%emt 0:05:05] Black is slightly better.} dxc5 {[%emt 0:02:34]} 13. Nxc7 {[%emt 0:02:30]} Rad8 {[%emt 0:09:34]} 14. Nd5 {[%emt 0:01:12]} N7c6 {[%emt 0:04:12]} 15. Kh1 {[%emt 0:05:30] [#]} (15. Nd2 $5 {[%cal Rb2b3]}) 15... f5 $146 {[%emt 0:04:52][%cal Bf7f5,Bf5e4,Be4e3][%mdl 32]} ({Predecessor:} 15... Be6 16. Nd2 Qh6 17. Nb3 f5 18. Nxc5 Nxf3 19. gxf3 fxe4 20. fxe4 Bh3 21. Rg1 Rxf2 {1-0 (35) Wang,Y-Bousmaha,L (1558) Saint Quentin 2019}) 16. gxh3 {[%emt 0:09:34]} (16. Nd2 $1 $11) 16... Nxf3 $40 {[%emt 0:01:16][%mdl 192] Remove Defender. Black attacks with force. Black is more active.} 17. Qxf3 {[%emt 0:01:20] c4 is the strong threat.} fxe4 {[%emt 0:00:08]} 18. Qd1 {[%emt 0:25:45]} (18. Qg3 $17 {was necessary.} Rxd5 19. Qxg6 hxg6 20. c4) 18... e3 $1 $19 {[%emt 0:00:17] aiming for ...Qe4+.} 19. f3 {[%emt 0:07:02] Inhibits Qe4.} (19. Na3 exf2 20. Qe2 Rxd5 21. Rxf2) 19... Qe6 $1 {[%emt 0:00:22][%csl LRd5,LRh3] White must now prevent ...e2.} ({Weaker is} 19... e2 20. Qxe2 Rxd5 21. Nd2 $11) 20. Qe2 {[%emt 0:04:44]} Rxd5 {[%emt 0:00:44]} 21. f4 $2 {[%emt 0:05:35]} (21. Na3 Ne5 22. Qxe3) 21... Qe4+ {[%emt 0:00:18]} 22. Kg1 {[%emt 0:05:08]} Rxf4 {[%emt 0:01:05]} 23. Rxf4 {[%emt 0:01:14]} Qxf4 {[%emt 0:00:08]} 24. h4 {[%emt 0:02:05] Inhibits Rg5+.} Rd6 {[%emt 0:01:21] Black mates.} 25. h5 {[%emt 0:01:44]} Qg5+ {[%emt 0:00:32]} 26. Kh1 {[%emt 0:01:01]} Qd5+ {[%emt 0:00:07] Weighted Error Value: White=1.22/Black=0.06 (flawless)} (26... Ne5 $142 27. c4 Nd3 28. Nc3 Nf2+ 29. Qxf2 exf2 30. Ne4 {[#]} Qxh5 $1 31. Kg2 Qe2 $1 32. Kg3 Qxe4 33. h3 f1=N+ 34. Rxf1 Rg6+ 35. Kh2 Qg2#) 0-1